{"text_format":"3","workbook":"xlsx","n_sheets":2,"sheets":["RELACIÓN DE CONTRATOS 2025","Lista"],"not_rendered":{"images":1,"defined_names":6},"read":"whole","date_system":"1900"}

{"sheet":"RELACIÓN DE CONTRATOS 2025","index":0,"n_rows":77,"n_cols":39,"rows_kept":77,"merged":[[0,0,0,38]]}
["RELACIÓN DE CONTRATOS \n2025"]
["Tipo Contrato","No. Contrato","Año","Modalidad","Rubro","Objeto","Contratista","Identificación","Valor Contrato","Plazo","CDP","Fecha CDP","RP","Fecha RP","Acta de Inicio","Acta de Suspensión","Desde - Hasta","Acta de Reanudación","Fecha Acta de Reanudación","Fecha de Terminación Inicial","Estado del Contrato","Póliza","Todo Riesgo","Fecha Expedición","Cumplimiento","Fecha Expedición","Responsabilidad Civil Extracontractual","Fecha Expedición","Adición","Fecha Adición","Valor Adición","Plazo","CDP","Fecha CDP","RP","Fecha RP","Valor Total del Contrato","PlazoTotal del Contrato","Nueva Fecha Terminación"]
["PSAG","001",2025,"Solicitud de Única Oferta","Proyecto","CONTRATAR LA PRESTACIÓN DE SERVICIOS DE APOYO A LA GESTIÓN AL ÁREA DE OPERACIONES DEL SISTEMA ESTRATÉGICO DE TRANSPORTE PUBLICO COLECTIVO DE LA CIUDAD DE VALLEDUPAR – SETPC.","Diana Margarita Ustariz Cure",{"v":1065807803,"d":"1,065,807,803"},{"v":10358523,"d":"$ 10,358,523.00"},"3 Meses y 15 Días",1,"2025-01-07",3,"2025-01-07","2025-01-07","Si","7-ene-25\n10-abr-25","Si ","2025-04-11","2025-04-20","Finalizado","N/A","N/A","N/A","N/A","N/A","N/A","N/A","N/A","N/A","N/A","N/A","N/A","N/A","N/A","N/A","N/A","N/A","2025-07-25"]
["PSP","002",2025,"Solicitud de Única Oferta",null,"PRESTACIÓN DE SERVICIOS PROFESIONALES PARA BRINDAR ASESORÍA FINANCIERA A LA GERENCIA EN EL SISTEMA INTEGRADO DE TRANSPORTE DE VALLEDUPAR SIVA SAS ENTE GESTOR DEL SISTEMA ESTRATÉGICO DE TRANSPORTE PÚBLICO SETP DE VALLEDUPAR","Angela María Herrera Piñeres",{"v":22793797,"d":"22,793,797"},{"v":59198050,"d":"$ 59,198,050.00"},"5 Meses",5,"2025-01-07",4,"2025-01-09","9 de enero 2025","N/A","N/A","N/A","N/A","8 de junio 2025","Finalizado","N/A","N/A","N/A","N/A","N/A","N/A","N/A","Si","2025-06-06",{"v":29599025,"d":"$ 29,599,025.00"},"5 MESES ",112,"2025-06-06",119,"2025-06-06",{"v":88797075,"d":"$ 88,797,075.00"},"7 MESES Y 15 DIAS ","2025-08-23"]
["PSP","003",2025,"Solicitud de Única Oferta",null,"CONTRATAR LA PRESTACIÓN DE SERVICIOS PROFESIONALES PARA BRINDAR ASESORÍA A LA GERENCIA EN LA GESTIÓN ADMINISTRATIVA DEL SISTEMA INTEGRADO DE TRANSPORTE SIVA SAS ENTE GESTOR DEL SISTEMA ESTRATÉGICO DE TRANSPORTE PÚBLICO SETP DE VALLEDUPAR.","Jairo Rafael Martinez",{"v":77090881,"d":"77,090,881"},{"v":30060000,"d":"$ 30,060,000.00"},"4 meses y 15 dás",6,"2025-01-07",7,"2025-01-10","2025-01-10","N/A","N/A","N/A","N/A","2025-05-24","Finalizado","N/A","N/A","N/A","N/A","N/A","N/A","N/A","Si","2025-05-22",{"v":19832000,"d":"$ 19,832,000.00"},"2 meses y 7 dias",101,"2025-05-21","N/A","N/A",{"v":59792000,"d":"$ 59,792,000.00"},"6 meses y 22 dias ","2025-07-30"]
["PSP","004",2025,"Solicitud de Única Oferta",null,"PRESTACIÓN DE SERVICIOS PROFESIONALES PARA QUE BRINDE APOYO Y ASESORÍA JURÍDICA EN EL SISTEMA INTEGRADO DE TRANSPORTE DE VALLEDUPAR SIVA S.A.S. ENTE GESTOR DEL SISTEMA ESTRATÉGICO DE TRANSPORTE PÚBLICO SETP DE VALLEDUPAR","Elizabeth Gutierrez Guerra",{"v":1065585539,"d":"1,065,585,539"},{"v":13615606,"d":"$ 13,615,606.00"},"2 meses",8,"2025-01-07",5,"2025-01-10","2025-01-10","N/A","N/A","N/A","N/A","2025-03-09","Finalizado","N/A","N/A","N/A","N/A","N/A","N/A","N/A","Si","2025-03-07",{"v":6807803,"d":"6,807,803"},"1 MES",50,"2025-03-07",54,"2025-03-07",{"$f":"AE6+I6","v":{"v":20423409,"d":"$ 20,423,409.00"}},"3 MESES","2025-04-09"]
["PSP","005",2025,"Solicitud de Única Oferta",null,"PRESTACIÓN DE SERVICIOS PROFESIONALES PARA BRINDAR ACOMPAÑAMIENTO Y SEGUIMIENTO A LOS PROYECTOS DE INFRAESTRUCTURA QUE PLANEA Y EJECUTA EL SISTEMA INTEGRADO DE TRANSPORTE DE VALLEDUPAR SIVA S.A.S. ENTE GESTOR DEL SISTEMA ESTRATÉGICO DE TRANSPORTE PÚBLICO SETP DE VALLEDUPAR","Deimar Alberto Martinez Pedroza",{"v":77177851,"d":"77,177,851"},{"v":35520128,"d":"$ 35,520,128.00"},"4 meses ",9,"2025-01-07",6,"2025-01-10","2025-01-10","N/A","N/A","N/A","N/A","2025-05-09","Finalizado","N/A","N/A","N/A","N/A","N/A","N/A","N/A","Si","2025-05-08",{"v":17760064,"d":"$ 17,760,064.00"},"2 meses ",88,"2025-05-08",93,"2025-05-08",{"v":53280192,"d":"$ 53,280,192.00"},"6 meses ","2025-07-09"]
["PSP","006",2025,"Solicitud de Única Oferta",null,"CONTRATAR LA PRESTACIÓN DE SERVICIOS PROFESIONALES PARA BRINDAR ASESORÍA A LA GERENCIA EN EL MANTENIMIENTO Y SUPERVISIÓN DE LA FLOTA DE PROPIEDAD DE SIVA S.A.S. ASÍ COMO DE LA PLANIFICACIÓN Y GESTIÓN DE LA OPERACIÓN DEL SISTEMA ESTRATÉGICO DE TRANSPORTE PÚBLICO COLECTIVO DE PASAJEROS","Anderson Andres Díaz Suarez",{"v":1140833982,"d":"1,140,833,982"},{"v":27231212,"d":"$ 27,231,212.00"},"4 meses",11,"2025-01-08",11,"2025-01-13","2025-01-13","N/A","N/A","N/A","N/A","2025-05-12","Finalizado","N/A","N/A","N/A","N/A","N/A","N/A","N/A","Si","2025-05-09",{"v":13615606,"d":"$ 13,615,606"},"2 meses",92,"2025-05-09",95,"2025-05-09",{"v":40846818,"d":"$ 40,846,818.00"},"6 meses ","2025-07-12"]
["PSP","007",2025,"Solicitud de Única Oferta",null,"CONTRATAR LA PRESTACIÓN DE SERVICIOS PROFESIONALES PARA QUE BRINDE SOPORTE COMO CONTADOR PÚBLICO EN EL SISTEMA INTEGRADO DE TRANSPORTE DE VALLEDUPAR SIVA S.A.S. ENTE GESTOR DEL SISTEMA ESTRATÉGICO DE TRANSPORTE PÚBLICO SETP DE VALLEDUPAR ","Jose Hilario Garcia Ojeda",{"v":17995766,"d":"17,995,766"},{"v":14208000,"d":"$ 14,208,000.00"},"1 mes y 18 dias calendario",7,"2025-01-07",9,"2025-01-13","2025-01-13","N/A","N/A","N/A","N/A","28 de febrero","Finalizado",{"$nulls":15},{"$f":"I9","v":{"v":14208000,"d":"$ 14,208,000.00"}},{"$f":"J9","v":"1 mes y 18 dias calendario"},{"$f":"T9","v":"28 de febrero"}]
["PSP","008",2025,"Solicitud de Única Oferta",null,"PRESTACION DE SERVICIOS PROFESIONALES DE APOYO PARA QUE BRINDE SOPORTE TECNICO EN LA OPERAClÓN DEL SISTEMA ESTRATÉGICO DE TRANSPORTE PUBLICO SETP DE VALLEDUPAR A CARGO DEL SISTEMA INTEGRADO DE TRANSPORTE DE VALLEDUPAR SIVA S.A.S.","Ciro Enrique Martinez Araujo",{"v":1020807275,"d":"1,020,807,275"},{"v":23803636,"d":"$ 23,803,636.00"},"4 meses",4,"2025-01-07",10,"2025-01-13","2025-01-13","N/A","N/A","N/A","N/A","2025-05-12","Finalizado","N/A","N/A","N/A","N/A","N/A","N/A","N/A","Si","2025-05-09",{"v":11901818,"d":"$ 11,901,818"},"2 meses ",93,"2025-05-09",96,"2025-05-09",{"v":35705454,"d":"$ 35,705,454.00"},"6 meses ","2025-07-12"]
["PSP","009",2025,"Solicitud de Única Oferta",null,"CONTRATAR LA PRESTACIÓN DE SERVICIOS PROFESIONALES DE UN ABOGADO PARA APOYAR LAS ACTIVIDADES RELACIONADAS CON LA DEFENSA JUDICIAL, EXTRAJUDICIAL Y BRINDAR APOYO JURÍDICO A LAS ÁREAS DEL SISTEMA INTEGRADO DE TRANSPORTE DE VALLEDUPAR SIVA S.A.S.","Sandra Castro Castro",{"v":49763131,"d":"49,763,131"},{"v":13615606,"d":"$ 13,615,606.00"},"2 meses",17,"2025-01-23",13,"2025-01-24","2025-01-24","N/A","N/A","N/A","N/A","2025-03-23","Finalizado",{"$nulls":7},"Si","2025-03-20",{"v":6807803,"d":"$ 6,807,803"},"1 MES",53,"2025-03-20",59,"2025-03-21",{"$f":"AE11+I11","v":{"v":20423409,"d":"$ 20,423,409.00"}},"3 MESES","2025-04-23"]
["PS","010",2025,"Solicitud de Única Oferta",null,"CONTRATACIÓN DE ENCARGO FIDUCIARIO QUE ADMINISTRARÁ LOS RECURSOS DEL FONDO DE ESTABILIZACIÓN TARIFARIA PARA LA OPERACIÓN DEL SISTEMA ESTRATÉGICO DE TRANSPORTE PÚBLICO DE LA CIUDAD DE VALLEDUPAR","FIDUCIARIA OCCIDENTE","800.143.157-3",{"v":18633615,"d":"$ 18,633,615.00"},"11 meses",10,"2025-01-08",15,"2025-01-29","2025-01-29","N/A","N/A","N/A","N/A","2025-12-28","Finalizado",{"$nulls":15},{"$f":"I12","v":{"v":18633615,"d":"$ 18,633,615.00"}},{"$f":"J12","v":"11 meses"},{"$f":"T12","v":"2025-12-28"}]
["PSP","011",2025,"Solicitud de Única Oferta",null,"CONTRATAR LA PRESTACIÓN DE SERVICIOS DE ALOJAMIENTO DE SERVIDOR DE SEGURIDAD SAM Y ROUTER DEL SISTEMA INTEGRADO DE TRANSPORTE DE VALLEDUPAR SIVA S.A.S., ENTE GESTOR DEL PROYECTO SISTEMA ESTRATÉGICO DE TRANSPORTE PÚBLICO COLECTIVO DE VALLEDUPAR SETPC","HOSTDIME","900040346-9",{"v":27352050,"d":"$ 27,352,050.00"},"11 meses",18,"2025-01-24",16,"2025-01-31","2025-01-31","N/A","N/A","N/A","N/A","2025-12-31","Finalizado",{"$nulls":15},{"v":27352050,"d":"$ 27,352,050.00"},"11 meses","2025-12-31"]
["PSP","012",2025,"Solicitud de Única Oferta",null,"PRESTACION DE SERVICIOS PROFESIONALES PARA\nBRINDAR APOYO FINANCIERO AL AREA DE\nOPERACIONES DEL SIVA SAS, ENTE GESTOR DEL\nSISTEMA ESTRATEGICO DE TRANSPORTE PUBLICO\nCOLECTIVO DE LA CIUDAD DEVALLEDUPAR-SETPC,","HERNANDO CERCHARIO",{"v":81717411,"d":"81,717,411"},{"v":17496000,"d":"$ 17,496,000.00"},"4 MESES",20,"2025-01-29",18,"2025-02-03","2025-02-03","N/A","N/A","N/A","N/A","2025-06-02","Finalizado","N/A","N/A","N/A","N/A","N/A","N/A","N/A","Si","2025-05-30",{"v":8748000,"d":"$ 8,748,000"},"2 MESES ",107,"2025-05-29",112,"2025-05-30",{"v":26244000,"d":"$ 26,244,000.00"},"6 MESES ","2025-08-02"]
["PSP","013",2025,"Solicitud de Única Oferta",null,"CONTRATAR LA PRESTACION DE SERVICIOS PROFESIONALES DE APOYO A LA GESTION AL AREA DE OPERACIONES DEL SISTEMA ESTRATEGICO DE TRANSPORTE PUBLICO COLECTIVO DE LA CIUDAD DE VALLEDUPAR-SETPC","WILLIAM ANDRES JAIMES FONTALVO",{"v":1065812203,"d":"1,065,812,203"},{"v":14795288,"d":"$ 14,795,288.00"},"4 MESES",14,"2025-01-16",25,"2025-02-03","2025-02-03","N/A","N/A","N/A","N/A","2025-06-02","Finalizado","N/A","N/A","N/A","N/A","N/A","N/A","N/A","Si","2025-05-30",{"v":7397644,"d":"$ 7,397,644"},"2 MESES",108,"2025-05-29",111,"2025-05-30",{"v":22192932,"d":"$ 22,192,932.00"},"6 MESES ","2025-08-02"]
["PSP","014",2025,"Solicitud de Única Oferta",null,"CONTRATAR LA PRESTACION DE SERVICIOS\nPROFESIONALES ESPECIALIZADOS DE ASISTENCIA\nTECNOLdGICA Y APOYO A LA SUPERVISION PARA LA\nOPERACION DEL SISTEMA DE RECAUDO CENTRALIZADO,\nCONTROL DE FLOTA E INFORMACION AL USUARIO DEL\nSISTEMA ESTRATEGICO DE TRANSPORTE PUBLICO\nCOLECTIVO DE VALLEDUPAR ■ SETPC DE VALLEDUPAR.","A4ASOCIADOS",{"v":900996599,"d":"900,996,599"},{"v":124950000,"d":"$ 124,950,000.00"},"7 MESES",19,"2025-01-28",26,"2025-02-03","2025-02-03","N/A","N/A","N/A","N/A","2025-09-02","Finalizado","N/A","N/A","N/A","N/A","N/A","N/A","N/A","Si","2025-09-02",{"v":62475000,"d":"$ 62,475,000"},"3 MESES Y 15 DIAS ",164,"2025-09-01",167,"2025-09-02",{"v":187425000,"d":"$ 187,425,000.00"},"10 MESES Y 15 DIAS ","2025-12-15"]
["PSP","015",2025,"Solicitud de Única Oferta",null,"CONTRATAR LA PRESTACIÓN DE SERVICIOS PROFESIONALES DE APOYO EN LAS DIFERENTES ACTIVIDADES DE LA GESTIÓN ADMINISTRATIVA QUE ADELANTA EL SISTEMA INTEGRADO DE TRANSPORTE DE VALLEDUPARSIVA S.A.S.","GABRIELA OÑATE RODRIGUEZ",{"v":49720399,"d":"49,720,399"},{"$f":"3698822*2","v":{"v":7397644,"d":"$ 7,397,644.00"}},"2 MESES",22,"2025-01-30",27,"2025-02-03","2025-02-03","N/A","N/A","N/A","N/A","2025-04-02","Finalizado",{"$nulls":7},"Si","2025-04-01",{"v":3698822,"d":"3,698,822"},"1 MES",63,"2025-04-01",66,"2025-04-01",{"$f":"AE17+I17","v":{"v":11096466,"d":"$ 11,096,466.00"}},"3 MESES","2025-05-01"]
["PSAG","016",2025,"Solicitud de Única Oferta",null,"Prestacidn de servicios de apoyo a la gestidn para el desarrollo de actividades asistenciales y administrativas del sistema integrado de transpose de valledupar siva s.a.s. Ente gestor del sistema estrategico de transpose publico setp de valledupar.","AIDIS PAOLA DIAZ SARMIENTO",{"v":10656563314,"d":"10,656,563,314"},{"v":5919156,"d":"$ 5,919,156.00"},"2 MESES",29,"2025-02-10",32,"2025-02-11","2025-02-11","N/A","N/A","N/A","N/A","2025-04-10","Finalizado",{"$nulls":7},"Si","2025-04-09",{"v":2959578,"d":"2,959,578"},"1 MES",77,"2025-04-09",null,null,{"$f":"AE18+I18","v":{"v":8878734,"d":"$ 8,878,734.00"}},"3 MESES","2025-05-10"]
["PS","017",2025,"Solicitud Privada de Oferta",null,"PRESTACION DELSERVICIO DE TRANSPORTS TERRESTRE ESPECIAL PARA EL PERSONAL Y EQUIPO DE TRABAJO DEL SISTEMA\nINTEGRADO DE TRANSPORTS DE VALLEDUPAR SIVA S.A.S ENTE GESTOR DEL PROYECTO SISTEMA ESTRATEGICO DE TRANSPORTE PUBLICO COLECTIVO DE VALLEDUPAR SETPC","COMPANIA DE TRANSPORTS GALAN S.A.S. TRANSPORTS CTG SAS","901180606-2","$123,936,120","10 MESES Y 15 DIAS",15,"2025-01-17",31,"2025-02-11","2025-02-13","N/A","N/A","N/A","N/A","2025-12-27","Finalizado",{"$nulls":15},{"$f":"I19","v":"$123,936,120"},{"$f":"J19","v":"10 MESES Y 15 DIAS"},{"$f":"T19","v":"2025-12-27"}]
["PSAG","018",2025,"Solicitud de Única Oferta",null,"PRESTACION DE SERVICIOS PARA EL APOYO EN ACTIVIDADES ASISTENCIALES Y LOGISTICAS EN EL SISTEMA INTEGRADO DE TRANSPORTE DE VALLEDUPAR SIVA S.A.S., ENTE GESTOR DEL SISTEMA ESTRATEGICO DE TRANSPORTE PUBLICO SETP DE VALLEDUPAR","MAIDELIDES MONTERO COBO",{"v":36640628,"d":"36,640,628"},{"v":5033100,"d":"$ 5,033,100.00"},"2 MESES",13,"2025-01-16",36,"2025-02-19","2025-02-19","N/A","N/A","N/A","N/A","2025-04-18","Finalizado",{"$nulls":15},{"v":5033100,"d":"$ 5,033,100.00"},"2 MESES","2025-04-18"]
["PSP","019",2025,"Solicitud de Única Oferta",null,"CONTRATACIÓN DE PRESTACION DE SERVICIOS\nPROFESIONALES DE APOYO A LOS PROYECTOS DE\nINFRAESTRUCTURA COMO INGENIERO AMBIENTAL EN EL SISTEMA INTEGRADO DE TRANSPORTE DE\nVALLEDUPAR SIVA S.A.S. ENTE GESTOR DEL SISTEMA ESTRATEGICO DE TRANSPORTE PUBLICO SETP DE VALLEDUPAR","JHON FREDY DAZA CARDENAS",{"v":1065138617,"d":"1,065,138,617"},{"v":7397644,"d":"$ 7,397,644.00"},"2 MESES",33,"2025-02-12",37,"2025-02-19","2025-02-19","N/A","N/A","N/A","N/A","2025-04-18","Finalizado",{"$nulls":15},{"v":7397644,"d":"$ 7,397,644.00"},"2 MESES","2025-04-18"]
["PSP","020",2025,"Solicitud de Única Oferta",null,"CONTRATAR LA PRESTACIÓN DE SERVICIOS\nPROFESIONALES DE APOYO A LA GESTIÓN EN\nACTIVIDADES EN SEGURIDAD Y SALUD EN EL TRABAJO DEL ENTE GESTOR DEL SISTEMA ESTRATÉGICO DE TRANSPORTE PÚBLICO COLECTIVO DE LA CIUDAD DE VALLEDUPAR – SETPC","RAFAEL ENRIQUE HERRÓN MARTÍNEZ,",{"v":1063592534,"d":"1,063,592,534"},{"v":7397644,"d":"$ 7,397,644.00"},"2 MESES",36,"2025-02-18",38,"2025-02-19","2025-02-19","N/A","N/A","N/A","N/A","2025-04-18","Finalizado",{"$nulls":15},{"v":7397644,"d":"$ 7,397,644.00"},"2 MESES","2025-04-18"]
["PSP","021",2025,"Solicitud de Única Oferta",null,"CONTRATAR LA PRESTACIÓN DE SERVICIOS\nPROFESIONALES PARA BRINDAR ACOMPAÑAMIENTO Y  APOYO A LAS ACTIVIDADES  DE GESTION ADMINISTRATIVA EN LA REALIZACION DE INFORMES, PLANES Y SEGUIMIENTOS QUE REQUIERA EL SISTEMA ESTRATÉGICO DE TRANSPORTE PÚBLICO COLECTIVO DE LA CIUDAD DE VALLEDUPAR – SETPC","SULEYMA GOYENECHE LEON",{"v":49793404,"d":"49,793,404"},{"v":10359820,"d":"$ 10,359,820.00"},"2  MESES",32,"2025-02-12",40,"2025-02-20","2025-02-20","N/A","N/A","N/A","N/A","2025-04-19","Finalizado",{"$nulls":15},{"v":10359820,"d":"$ 10,359,820.00"},"2  MESES","2025-04-19"]
["PSP","022",2025,"Solicitud de Única Oferta",null,"PRESTACION DE SERVICIOS PROFESIONALES DE APOYO A LA FORMULACION Y ESTRUCTURACIÓN DE LOS PROYECTOS DE INFRAESTRUCTURA COMO ARQUITECTO DEL SISTEMA INTEGRADO DE TRANSPORTE DE VALLEDUPAR SIVA S.A.S. ENTE GESTOR DEL SISTEMA ESTRATEGICO DE TRANSPORTE PUBLICO SETP DE VALLEDUPAR","LUIS CARLOS USTARIZ HERNANDEZ",{"v":77186649,"d":"77,186,649"},{"v":10359820,"d":"$ 10,359,820.00"},"2 MESES",38,"2025-02-18",39,"2025-02-20","2025-02-20","N/A","N/A","N/A","N/A","2025-04-19","Finalizado",{"$nulls":15},{"v":10359820,"d":"$ 10,359,820.00"},"2 MESES","2025-04-19"]
["PSAG","023",2025,"Solicitud de Única Oferta",null,"Contratar la prestacion de servicios de apoyo a la gestion al area de operaciones del Sistema Estrategico de Transporte Publico Colectivo de la ciudad de Valledupar - SETPC","ALEJANDRO JOSE OLIVELLA VILLAZON",{"v":1065622248,"d":"1,065,622,248"},{"v":17757468,"d":"$ 17,757,468.00"},"6 MESES",35,"2025-02-18",43,"2025-02-21","2025-02-21","N/A","N/A","N/A","N/A","2025-08-20","Finalizado",{"$nulls":15},{"v":17757468,"d":"$ 17,757,468.00"},"6 MESES","2025-08-20"]
["PS","024",2025,"Solicitud de Única Oferta",null,"Prestacion del servicio de vigilancia de seguridad armada en la sede sur del sistema integrado de transporte de Valtedupar SIVA S.A.S.","SECURITY RENTAL COMPANY LTDA",{"v":901617247,"d":"901,617,247"},{"v":21165000,"d":"$ 21,165,000.00"},"1 MES Y 15 DIAS CALENDARIO",41,"2025-02-20",44,"2025-02-26","2025-02-28","N/A","N/A","N/A","N/A","2025-04-11","Finalizado",{"$nulls":15},{"v":21165000,"d":"$ 21,165,000.00"},"1 MES Y 15 DIAS CALENDARIO","2025-04-11"]
["PSP","025",2025,"Solicitud de Única Oferta",null,"CONTRATAR LA PRESTACIÓN DE SERVICIOS PROFESIONALES PARA QUE BRINDE SOPORTE COMO CONTADOR PÚBLICO EN EL SISTEMA INTEGRADO DE TRANSPORTE DE VALLEDUPARSIVA S.A.S. ENTE GESTOR DEL SISTEMA ESTRATÉGICO DE TRANSPORTE PÚBLICO SETP DE VALLEDUPAR","ORLANDO GREGORIO SEOANES LERMA",{"v":77029205,"d":"77,029,205"},{"v":26640000,"d":"$ 26,640,000.00"},"3 MESES  ",45,"2025-02-27",45,"2025-02-27","2025-02-27","N/A","N/A","N/A","N/A","2025-05-26","Finalizado","N/A","N/A","N/A","N/A","N/A","N/A","N/A","Si","2025-05-23",{"v":13320000,"d":"$ 13,320,000"},"1 MES Y 15 DIAS ",104,"2025-05-23",110,"2025-05-23",{"v":39960000,"d":"$ 39,960,000.00"},"4 MESES Y 15 DIAS ","2025-07-11"]
["PSAG","026",2025,"Solicitud de Única Oferta",null,"Contratar la de prestación de servicios de apoyo a la gestión para el desarrollo de actividades administrativas del Sistema Integrado de Transporte de Valledupar – SIVA SAS, ente gestor del Sistema Estratégico de Transporte Publico Colectivo de la ciudad de Valledupar - SETPC.","DILIA DONADO ACOSTA,",{"v":49771020,"d":"49,771,020"},{"v":5919156,"d":"$ 5,919,156.00"},"2 MESES",40,"2025-02-18",46,"2025-02-27","2025-02-27","N/A","N/A","N/A","N/A","2025-04-26","Finalizado",{"$nulls":15},{"$f":"I28","v":{"v":5919156,"d":"$ 5,919,156.00"}},{"$f":"J28","v":"2 MESES"},{"$f":"T28","v":"2025-04-26"}]
["PS","27",2025,"Solicitud de Única Oferta",null,"CONTRATAR LA PRESTACIÓN DE SERVICIOS DE\nMANTENIMIENTO, SOPORTE TÉCNICO Y ACTUALIZACIONES A\nLA LICENCIA No 01902012122205 DE SOFTWARE SIIGO OFICIAL\nSERVICIOS UN (1) USUARIO, ADQUIRIDA POR EL SISTEMA\nINTEGRADO DE TRANSPORTE DE VALLEDUPAR - SIVA S.A.S\nENTE GESTOR DEL PROYECTO SISTEMA ESTRATÉGICO DE\nTRANSPORTE PÚBLICO COLECTIVO DE VALLEDUPAR – SETPC.","Integrasoft S.A.S",{"v":900332071,"d":"900,332,071"},{"v":11088908,"d":"$ 11,088,908.00"},"VEINTIOCHO (28) DÍAS CALENDARIOS Y NUEVE (9) MESES,",31,"2025-02-12",47,"2025-02-28","2025-03-04","N/A","N/A","N/A","N/A","2025-12-31","Finalizado",{"$nulls":15},{"v":11088908,"d":"$ 11,088,908.00"},"VEINTIOCHO (28) DÍAS CALENDARIOS Y NUEVE (9) MESES,","2025-12-31"]
["PSAG","28",2025,"Solicitud de Única Oferta",null,"PRESTACION DE SERVICIOS DE APOYO A LA GESTION EN LA\nSUPERVISION DEL MANTENIMIENTO DE LA FLOTA DE BUSES DE\nPROPIEDAD DEL SISTEMA INTEGRADO DE TRANSPORTE DE\nVALLEDUPAR SIVA S.A.S., PARA LA OPERACION DEL SISTEMA\nESTRATEGICO DE TRANSPORTE PUBLICO COLECTIVO DE\nPASAJEROS SETPC.","Leonardo Enrique Ramirez Caballero",{"v":1067598236,"d":"1,067,598,236"},{"v":15099300,"d":"$ 15,099,300.00"},"SEIS (6) MESES",37,"2025-02-18",49,"2025-03-06","2025-03-06","N/A","N/A","N/A","N/A","2025-09-05","Finalizado",{"$nulls":15},{"v":15099300,"d":"$ 15,099,300.00"},"SEIS (6) MESES","2025-09-05"]
["PSP","029",2025,"Solicitud de Única Oferta",null,"CONTRATAR LA PRESTACION DE SERVICIOS\nPROFESIONALES DE UN ABOGADO PARA BRINDE APOYO EN\nLAS ACTIVIDADES JURIDICAS Y ADMINISTRATIVAS QUE\nREQUIERA EL SISTEMA INTEGRADO DE TRANSPORTE DE\nVALLEDUPAR SIVA SAS ENTE GESTOR DEL SISTEMA\nESTRATEGICO DE TRANSPORTE PUBLICO COLECTIVO DE\nVALLEDUPAR SETPC","Jose Dario Orozco Mindiola",{"v":12645482,"d":"12,645,482"},{"v":10359820,"d":"$ 10,359,820.00"},"2 MESES",52,"2025-03-11",56,"2025-03-14","2025-03-14","N/A","N/A","N/A","N/A","2025-05-13","Finalizado","N/A","N/A","N/A","N/A","N/A","N/A","N/A","Si","2025-05-12",{"v":5179910,"d":"$ 5,179,910"},"1 MES",94,"2024-05-12",98,"2025-05-12",{"v":15539730,"d":"$ 15,539,730.00"},"3 meses ","2025-06-13"]
["PS","030",2025,"Solicitud Privada de Oferta",null,"prestación del servicio de vigilancia de seguridad armada en la sede sur del sistema integrado de transporte de Valledupar Siva S.A.S.","SECURITY RENTAL COMPANY LTDA","901617247-1",{"v":119935000,"d":"$ 119,935,000.00"},"OCHO (08) MESES Y QUINCE (15) DIAS CALENDARIO",44,"2025-02-25",67,"2025-04-01","2025-04-12","N/A",{"$nulls":3},"2025-12-26","Finalizado",{"$nulls":15},{"$f":"I32","v":{"v":119935000,"d":"$ 119,935,000.00"}},{"$f":"J32","v":"OCHO (08) MESES Y QUINCE (15) DIAS CALENDARIO"},{"$f":"T32","v":"2025-12-26"}]
["PSP","031",2025,"Solicitud de Única Oferta",null,"PRESTACIÓN DE SERVICIOS PROFESIONALES EN EL DESARROLLO Y EJECUCIÓN DE LA ESTRATEGIA DE COMUNICACIÓN INTERNA Y EXTERNA, ASÍ COMO LA SOCIALIZACIÓN DEL SISTEMA INTEGRADO DE TRANSPORTE DE VALLEDUPAR ENTE GESTOR DEL SISTEMA ESTRATÉGICO DE TRANSPORTE PUBLICO COLECTIVO DE LA CIUDAD DE VALLEDUPAR- SETPC","MERLIN JOHANA DUARTE GARCIA",{"v":1065596762,"d":"1,065,596,762"},{"v":15539730,"d":"$ 15,539,730.00"},"3 MESES",65,"2025-04-01",70,"2025-04-02","2025-04-02","N/A","N/A","N/A","N/A","2025-04-07","Terminación Anticipada del Contrato",{"$nulls":15},{"v":15539730,"d":"$ 15,539,730.00"},"3 MESES","2025-04-07"]
["PSP","032",2025,"Solicitud de Única Oferta",null,"PRESTACIÓN DE SERVICIOS DE APOYO A LA GESTIÓN PARA REALIZAR EL CUBRIMIENTO AUDITIVO, VISUAL Y AUDIOVISUAL, COMO SU PRODUCCIÓN Y POST-PRODUCCIÓN, DE LOS EVENTOS, ACTIVIDADES Y ACCIONES OFICIALES QUE REALICE EL SISTEMA INTEGRADO DE TRANSPORTE DE VALLEDUPAR SIVA  S.A.S.","INNOVACIÓN ATL SAS","900.567.925 – 6",{"v":24990000,"d":"$ 24,990,000.00"},"3 MESES",78,"2025-04-10",83,"2025-04-21","2025-04-22","N/A","N/A","N/A","N/A","2025-07-21","Finalizado","N/A","N/A","N/A","N/A","N/A","N/A","N/A","Si","2025-07-21",{"v":12495000,"d":"$ 12,495,000"},"1 MES Y 15 DIAS ",137,"2025-07-18",null,null,{"v":8330000,"d":"$ 8,330,000.00"},"4 MESES 15 DIAS ","2025-09-05"]
["PS","033",2025,"Solicitud de Única Oferta",null,"Contratar la prestación de servicios de actualización del sitio web y hosting, con correo electrónico incluido y demás especificaciones técnicas requeridas por la entidad Sistema Integrado de Transporte de Valledupar sas – siva sas.","GOPHER GROUP SAS","900425485-8",{"v":32000000,"d":"$ 32,000,000.00"},"3 MESES",59,"2025-03-28",84,"2025-04-21","2025-04-29","N/A","N/A","N/A","N/A","2025-07-28","Finalizado",{"$nulls":15},{"$f":"I35","v":{"v":32000000,"d":"$ 32,000,000.00"}},{"$f":"J35","v":"3 MESES"},{"$f":"T35","v":"2025-07-28"}]
["PS",34,2025,"Solicitud de Única Oferta",null,"PRESTAClÓN DE SERVICIOS PARA EL MANTENIMIENTO PREVENTIVO Y CORRECTIVO INCLUIDOS REPUESTOS Y SUMINISTRO DE TONER PARA LAS IMPRESORAS DEL SISTEMA INTEGRADO DE TRANSPORTE DE VALLEDUPAR - SIVA S.A.S.","DONALDO ENRIQUE VILORIA JIMENEZ",{"v":12722247,"d":"12,722,247"},{"v":6915090,"d":"$ 6,915,090.00"},"7 meses y 25 dias ",64,"2025-04-01",88,"2025-05-05","2025-05-07","N/A","N/A","N/A","N/A","2025-12-31","Finalizado",{"$nulls":15},{"v":6915090,"d":"$ 6,915,090.00"},"7 meses y 25 dias ","2025-12-31"]
["PS",35,2025,"Solicitud de Única Oferta",null,"PRESTACION DE SERVICIO DEL SUMINISTRO, INSTALACION, DESINSTALACION Y SEGUIMIENTO DE LOS ELEMENTOS PUBLICITARIOS PARA LA FLOTA DE PROPIEDAD DEL SISTEMA INTEGRADO DE TRANSPORTE DE VALLEDUPAR SIVA S.A.S.","CONSEGURIDAD Y SUMINISTROS S.A.S\n","Nit: 900417249-2",{"v":30000000,"d":"$ 30,000,000.00"},"8 meses ",83,"2025-04-29",null,null,"2025-04-30","N/A","N/A","N/A","N/A","2025-12-29","Finalizado","N/A","N/A","N/A","N/A","N/A","N/A","N/A","Si","2025-06-05",{"v":15000000,"d":"$ 15,000,000.00"},"N/A",109,"2025-05-30",117,"2025-06-05",{"v":45000000,"d":"$ 45,000,000.00"},"8 MESES ","2025-12-29"]
["PSP","36",2025,"Solicitud de Única Oferta",null,"PRESTACIÓN DE SERVICIOS PROFESIONALES PARA QUE BRINDE APOYO Y ASESORÍA JURÍDICA EN EL SISTEMA INTEGRADO DE TRANSPORTE DE VALLEDUPAR SIVA S.A.S. ENTE GESTOR DEL SISTEMA ESTRATÉGICO DE TRANSPORTE PÚBLICO SETP DE VALLEDUPAR","Elizabeth Gutierrez Guerra",{"v":1065585539,"d":"1,065,585,539"},{"v":13615606,"d":"$ 13,615,606.00"},"2 meses",86,"2025-05-06",90,"2025-05-07","2025-05-08","N/A","N/A","N/A","N/A","2025-07-07","Finalizado","N/A","N/A","N/A","N/A","N/A","N/A","N/A","Si","2025-07-04",{"v":6807803,"d":"$ 6,807,803.00"},"1 MES  ",126,"2025-07-04",132,"2025-07-04",{"v":20423409,"d":"$ 20,423,409.00"},"3 MESES ","2025-08-07"]
["CS","37",2025,"Solicitud de Única Oferta",null,"CONTRATAR LA ADQUISICION DE UNA POLIZA DE MANEJO DE CAJA MENOR DE LA EMPRESA SISTEMA INTEGRADO DE TRANSPORTE DE VALLEDUPAR SIVA SAS ","Aseguradora Solidaria",{"v":860524654,"d":"860,524,654"},{"v":600397,"d":"$ 600,397.00"},"15 dias ",91,"2025-05-08",101,"2025-05-14","2025-05-14","N/A","N/A","N/A","N/A","2025-05-28","Finalizado",{"$nulls":15},{"$f":"I39","v":{"v":600397,"d":"$ 600,397.00"}},{"$f":"J39","v":"15 dias "},{"$f":"T39","v":"2025-05-28"}]
["PSP","38",2025,"Solicitud de Única Oferta",null,"CONTRATAR LA PRESTACIÓN DE SERVICIOS PROFESIONALES DE UN ABOGADO PARA APOYAR LAS ACTIVIDADES RELACIONADAS CON LA DEFENSA JUDICIAL, EXTRAJUDICIAL Y BRINDAR APOYO JURÍDICO A LAS ÁREAS DEL SISTEMA INTEGRADO DE TRANSPORTE DE VALLEDUPAR SIVA S.A.S.","Sandra Castro Castro",{"v":49763131,"d":"49,763,131"},{"v":47654621,"d":"$ 47,654,621.00"},"7 MESES",97,"2025-05-16",102,"2025-05-20","2025-05-21","N/A","N/A","N/A","N/A","2025-12-20","Finalizado",{"$nulls":15},{"v":47654621,"d":"$ 47,654,621.00"},"7 MESES","2025-12-20"]
["PSP","39",2025,"Solicitud de Única Oferta",null,"PRESTACION DE SERVICIOS PROFESIONALES EN SEGURIDAD Y SALUD EN EL TRABAJO (SST) CON EL PROPOSITO DE APOYAR LA GESTION ADMINISTRATIVA Y DE OPERACIONES DEL SISTEMA ESTRATEGICO DE TRANSPORTE PUBLICO DE LA CIUDAD DE VALLEDUPAR - SETPC ","RAFAEL ENRIQUE HERRÓN MARTÍNEZ",{"v":1063592534,"d":"1,063,592,534"},{"v":18494110,"d":"$ 18,494,110.00"},"5 MESES ",102,"2025-05-21",109,"2025-05-23","2025-05-23","N/A","N/A","N/A","N/A","2025-10-22","Finalizado","N/A","N/A","N/A","N/A","N/A","N/A","N/A","Si","2025-10-28",{"v":7397644,"d":"$ 7,397,644"},"2 MESES ",198,"2025-10-28",203,"2025-10-28",{"v":25891754,"d":"$ 25,891,754.00"},"7 MESES ","2025-12-22"]
["PSP","40",2025,"Solicitud de Única Oferta",null,"PRESTACIÓN DE SERVICIOS PROFESIONALES PARA QUE BRINDE ASESORIA JURIDICA EN EL SISTEMA INTEGRADO DE TRANSPORTE DE VALLEDUPAR SIVA S.A.S. ENTE GESTOR DEL SISTEMA ESTRATÉGICO DE TRANSPORTE PÚBLICO SETP DE VALLEDUPAR","ANDRÉS FELIPE LÓPEZ GÓMEZ",{"v":7143860,"d":"7,143,860"},{"v":42840000,"d":"$ 42,840,000.00"},"4 MESES ",106,"2025-05-27",116,"2025-06-04","2025-06-10","N/A","N/A","N/A","N/A","2025-10-09","Finalizado",{"$nulls":15},{"$f":"I42","v":{"v":42840000,"d":"$ 42,840,000.00"}},{"$f":"J42","v":"4 MESES "},{"$f":"T42","v":"2025-10-09"}]
["PSAG","41",2025,"Solicitud de Única Oferta",null,"CONTRATACION DE PRESTACION DE SERVICIOS DE APOYO A LA GESTIÓN PARA ELDESARROLLO DE ACTIVIDADES ADMINISTRATIVAS, OPERATIVAS Y DE ORGANIZACION DOCUMENTAL REQUERIDAS POR EL SISTEMA INTEGRADO DE TRANSPORTE DE VALLEDUPAR - SIVA S.A.S. COMO ENTE GESTOR DEL SISTEMA ESTRATEGICO DE TRANSPORTE PUBLICOCOLECTIVO DE LA CIUDAD DE VALLEDUPAR - SETPC. ","DILIA DONADO ACOSTA,",{"v":49771020,"d":"49,771,020"},{"v":14797890,"d":"$ 14,797,890.00"},"5 MESES ",117,"2025-06-12",121,"2026-06-16","2025-06-16","N/A","N/A","N/A","N/A","2025-11-15","Finalizado",{"$nulls":7},"Si","2025-11-14",{"v":2806925,"d":"$ 2,806,925.00"},"29 DIAS ",204,"2025-11-13",212,"2025-11-14",{"v":17658815,"d":"$ 17,658,815.00"},"5 MESES Y 29 DIAS ","2025-12-13"]
["PSP","42",2025,"Solicitud de Única Oferta",null," CONTRATAR LA PRESTACIÓN DE SERVICIOS PROFESIONALES PARA BRINDAR ACOMPAÑAMIENTO Y APOYO A LAS ACTIVIDADES DE GESTIÓN ADMINISTRATIVA EN LA REALIZACIÓN DE INFORMES, PLANES Y SEGUIMIENTOS QUE REQUIERA EL SISTEMA INTEGRADO DE TRANSPORTE DE VALLEDUPAR SIVA SAS ENTE GESTOR DEL SISTEMA ESTRATÉGICO DE TRANSPORTE PÚBLICO COLECTIVO DE LA CIUDAD DE VALLEDUPAR – SETPC","SULEYMA GOYENECHE LEON",{"v":49793404,"d":"49,793,404"},{"v":20719640,"d":"$ 20,719,640.00"},"4 MESES ",114,"2025-06-09",122,"2025-06-18","2025-06-27","N/A","N/A","N/A","N/A","2025-10-26","Finalizado","N/A","N/A","N/A","N/A","N/A","N/A","N/A","Si","2025-10-24",{"v":5179910,"d":"$ 5,179,910"},"1 MES ",194,"2025-10-24",200,"2025-10-24",{"v":25899550,"d":"$ 25,899,550.00"},"5 MESES ","2025-11-26"]
["PSAG","43",2025,"Solicitud de Única Oferta",null,"CONTRATACIÓN DE PRESTACIÓN DE SERVICIOS PARA EL APOYO A LAS ACTIVIDADES LOGISTICAS Y ADMINISTRATIVAS NECESARIAS QUE REQUIERAN LOS USUARIOS DEL SISTEMA INTEGRADO DE TRANSPORTE DE VALLEDUPAR- SIVA S.A.S.","MAIDELIDES MONTERO COBO",{"v":36640628,"d":"36,640,628"},{"v":15099300,"d":"$ 15,099,300.00"},"6 MESES",116,"2025-06-09",123,"2025-06-18","2025-06-24","N/A","N/A","N/A","N/A","2025-12-31","Finalizado",{"$nulls":15},{"$f":"I45","v":{"v":15099300,"d":"$ 15,099,300.00"}},{"$f":"J45","v":"6 MESES"},{"$f":"T45","v":"2025-12-31"}]
["PSP","44",2025,"Solicitud de Única Oferta",null,"CONTRATACIÓN DE PRESTACIÓN DE SERVICIOS PROFESIONALES COMO APOYO A LA GESTION DE INFRAESTRUCTURA Y DE OPERACIONES DEL SISTEMA INTEGRADO DE TRANSPORTE DE VALLEDUPAR SIVA S.A.S. ENTE GESTOR DEL SISTEMA ESTRATÉGICO DE TRANSPORTE PÚBLICO SETP DE\nVALLEDUPAR\n","LUIS CARLOS USTARIZ HERNANDEZ",{"v":77186649,"d":"77,186,649"},{"v":31079460,"d":"$ 31,079,460.00"},"6 MESES",115,"2025-06-09",124,"2025-06-18","2025-06-24","N/A","N/A","N/A","N/A","2025-12-23","Finalizado",{"$nulls":15},{"v":31079460,"d":"$ 31,079,460.00"},"6 MESES","2025-12-23"]
["PSAG","45",2025,"Solicitud de Única Oferta",null,"PRESTACION DE SERVICIOS DE APOYO A LA GESTIÓN PARA LA EJECUCION DE ACTIVIDADES ASISTENCIALES Y OPERATIVAS EN LA ENTIDAD Y REALIZAR EL MANEJO E INGRESO DE INFORMACION EN LOS DIFERENTES SISTEMAS ELECTRONICOS ESTATALES QUE REQUIERA EL SISTEMA INTEGRADO DE TRANSPORTE DE VALLEDUPAR SIVA S.A.S ENTE GESTOR DEL SISTEMA\nESTRATEGICO DE TRANSPORTE PUBLICO SETP DE VALLEDUPAR. ","PAOLA DÍAZ SARMIENTO",{"v":1065653314,"d":"1,065,653,314"},{"v":14797890,"d":"$ 14,797,890.00"},"5 MESES ",119,"2025-06-17",125,"2025-06-18","2025-06-24","N/A","N/A","N/A","N/A","2025-12-14","Finalizado",{"$nulls":7},"SI","2025-11-21",{"v":2071705,"d":"$ 2,071,705"},"21 DIAS ",208,"2025-11-21",214,"2025-11-21",{"v":16869595,"d":"$ 16,869,595.00"},"5 MESES Y 21 DIAS ","2025-12-14"]
["PSP","46",2025,"Solicitud de Única Oferta",null,"PRESTACION DE SERVICIOS PROFESIONALES DE APOYO A LA GESTIÓN ADMINISTRATIVA EN LOS DISTINTOS PROCESOS MISIONALES, OPERATIVOS, DE SEGUIMIENTO Y CONTROL QUE ADELANTE EL SISTEMA INTEGRADO DE TRANSPORTE DE VALLEDUPAR - SIVA S.A.S","GABRIELA OÑATE RODRIGUEZ",{"v":49720399,"d":"49,720,399"},{"v":18494110,"d":"$ 18,494,110.00"},"5 MESES ",120,"2025-06-17",126,"2025-06-19","2025-06-24","N/A","N/A","N/A","N/A","2025-12-14","Finalizado",{"$nulls":7},"SI","2025-11-21",{"v":2589175,"d":"$ 2,589,175"},"21 DIAS ",209,"2025-11-21",215,"2025-11-21",{"v":21083285,"d":"$ 21,083,285.00"},"5 MESES Y 21 DIAS ","2025-12-14"]
["PSP","47",2025,"Solicitud de Única Oferta",null,"PRESTACION DE SERVICIOS PROFESIONALES PARA BRINDAR ACOMPAÑAMIENTO Y SEGUIMIENTO A LOS PROYECTOS DE INFRAESTRUCTURA QUE PLANEA Y EJECUTA EL SISTEMA INTEGRADO DE TRANSPORTE DE VALLEDUPAR SIVAS S.A.S. ENTE GESTOR DEL SISTEMA ESTRATEGICO DE TRANSPORTE PUBLICO SETP DE VALLEDUPAR","Deimar Alberto Martinez Pedroza",{"v":77177851,"d":"77,177,851"},{"v":49432178,"d":"$ 49,432,178.00"},"5 MESES Y 17 DIAS ",130,"2025-07-10",135,"2025-07-11","2025-07-14","N/A","N/A","N/A","N/A","2025-12-30","Finalizado",{"$nulls":15},{"$f":"I49","v":{"v":49432178,"d":"$ 49,432,178.00"}},{"$f":"J49","v":"5 MESES Y 17 DIAS "},{"$f":"T49","v":"2025-12-30"}]
["PSP","48",2025,"Solicitud de Única Oferta",null,"CONTRATAR LA PRESTACIÓN DE SERVICIOS PROFESIONALES PARA BRINDAR ASESORÍA A LA GERENCIA EN EL MANTENIMIENTO Y SUPERVISIÓN DE LA FLOTA DE PROPIEDAD DE SIVA S.A.S. ASÍ COMO DE LA PLANIFICACIÓN Y GESTIÓN DE LA OPERACIÓN DEL SISTEMA ESTRATÉGICO DE TRANSPORTE PÚBLICO COLECTIVO DE PASAJEROS","Anderson Andres Díaz Suarez",{"v":1140833982,"d":"1,140,833,982"},{"v":46472167,"d":"$ 46,472,167.00"},"5 MESES Y 7 DIAS ",133,"2025-07-15",140,"2025-07-15","2025-07-17","N/A","N/A","N/A","N/A","2025-12-23","Finalizado",{"$nulls":15},{"v":46472167,"d":"$ 46,472,167.00"},"5 MESES Y 7 DIAS ","2025-12-23"]
["PSP","49",2025,"Solicitud de Única Oferta",null,"CONTRATAR LA PRESTACIÓN DE SERVICIOS PROFESIONALES PARA QUE BRINDE SOPORTE COMO CONTADOR PÚBLICO EN EL SISTEMA INTEGRADO DE TRANSPORTE DE VALLEDUPAR SIVA S.A.S. ENTE GESTOR DEL SISTEMA ESTRATÉGICO DE TRANSPORTE PÚBLICO SETP DE VALLEDUPAR","ORLANDO GREGORIO SEOANES LERMA",{"v":77029205,"d":"77,029,205"},{"v":44440000,"d":"$ 44,440,000.00"},"5 MESES ",132,"2025-07-14",139,"2025-07-15","2025-07-17","N/A","N/A","N/A","N/A","2025-12-30","Finalizado",{"$nulls":15},{"v":44440000,"d":"$ 44,440,000.00"},"5 MESES ","2025-12-30"]
["PSP","50",2025,"Solicitud de Única Oferta",null,"PRESTACION DE SERVICIO PROFESIONALES DE UN ABOGADO PARA BRINDE APOYO EN LAS ACTIVIDADES JURIDICAS Y ADMINISTRATIVAS QUE REQUIERAN EL SISTEMA INTRGRADO DE TRANSPORTE DE VALLEDUPAR SIVA SAS ENTE GESTOR DEL SISTEMA ESTRATEGICO DE TRANSPORTE PUBLICO COLECTIVO DE VALLEDUPAR  - SETPC","Jose Dario Orozco Mindiola",{"v":12645462,"d":"12,645,462"},{"v":20719640,"d":"$ 20,719,640.00"},"4 MESES ",134,"2025-07-15",141,"2025-07-16","2025-07-18","N/A","N/A","N/A","N/A","2025-11-17","Finalizado",{"$nulls":7},"SI","2025-11-14",{"v":4834583,"d":"$ 4,834,583"},"28 DIAS ",205,"2025-11-13",213,"2025-11-14",{"v":25554223,"d":"$ 25,554,223.00"},"4 MESES Y 28 DIAS ","2025-12-15"]
["PSAG","51",2025,"Solicitud de Única Oferta",null,"CONTRATACION DE PRESTACION DE SERVICIOS PARA EL APOYO A LAS ACTIVIDADES LOGISTICAS Y ADMINISTRATIVAS NECESARIAS QUE REQUIERAN LOS USUARIOS DEL SISTEMA INTEGRADO DE TRANSPORTE DE VALLEDUPAR - SIVA S.A.S.","Yuleinis Ortega Montero",{"v":1065578743,"d":"1,065,578,743"},{"v":2516650,"d":"$ 2,516,650.00"},"1 MES ",136,"2025-07-18",142,"2025-07-21","2025-07-23","N/A","N/A","N/A","N/A","2025-07-22","Finalizado",{"$nulls":15},{"$f":"I53","v":{"v":2516650,"d":"$ 2,516,650.00"}},{"$f":"J53","v":"1 MES "},{"$f":"T53","v":"2025-07-22"}]
["PSP","52",2025,"Solicitud de Única Oferta",null,"CONTRATAR LA PRESTACIÓN DE SERVICIOS PROFESIONALES DE APOYO A LA GESTIÓN AL ÁREA DE OPERACIONES DEL SISTEMA ESTRATÉGICO DE TRANSPORTE PUBLICO COLECTIVO DE LA CIUDAD DE VALLEDUPAR-SETPC","WILLIAM ANDRES JAIMES FONTALVO",{"v":1065812203,"d":"1,065,812,203"},{"v":17261169,"d":"$ 17,261,169.00"},"4 MESES Y 20 DIAS ",146,"2025-08-05",150,"2025-08-11","2025-08-12","N/A","N/A","N/A","N/A","2025-12-31","Finalizado",{"$nulls":15},{"v":17261169,"d":"$ 17,261,169.00"},"4 MESES Y 20 DIAS ","2025-12-31"]
["PSP","53",2025,"Solicitud de Única Oferta",null,"PRESTACION DE SERVICIOS PROFESIONALES PARA BRINDAR APOYO FINANCIERO AL AREA DE OPERACIONES DEL SIVA SAS, ENTE GESTOR DEL SISTEMA ESTRATEGICO DE TRANSPORTE PUBLICO COLECTIVO DE LA CIUDAD DE VALLEDUPAR-SETPC","HERNANDO CERCHARIO",{"v":81717411,"d":"81,717,411"},{"v":20412000,"d":"$ 20,412,000.00"},"4 MESES Y 20 DIAS ",147,"2025-08-05",151,"2025-08-11","2025-08-11","N/A","N/A","N/A","N/A","2025-12-30","Finalizado",{"$nulls":15},{"v":20412000,"d":"$ 20,412,000.00"},"4 MESES Y 20 DIAS ","2025-12-30"]
["PSP","54",2025,"Solicitud de Única Oferta",null,"PRESTACIÓN DE SERVICIOS PROFESIONALES PARA DETERMINAR EL VALOR CORRESPONDIENTE AL CANON DE ARRENDAMIENTO DEL PATIO TALLER SUR DE SIVA SAS A TRAVES DE UN AVALÚO TÉCNICO ESPECIALIZADO PRESTACIÓN DE SERVICIOS PROFESIONALES PARA DETERMINAR EL VALOR CORRESPONDIENTE AL CANON DE ARRENDAMIENTO DEL PATIO TALLER SUR DE SIVA SAS A TRAVES DE UN AVALÚO TÉCNICO ESPECIALIZADO","RICHARD XAVIER LÓPEZ",{"v":77170914,"d":"77,170,914"},{"v":4000000,"d":"$ 4,000,000.00"},"10 DIAS ",150,"2025-08-08",152,"2025-08-11","2025-08-12","N/A","N/A","N/A","N/A","2025-08-21","Finalizado",{"$nulls":15},{"v":4000000,"d":"$ 4,000,000.00"},"10 DIAS ","2025-08-21"]
["PSP","55",2025,"Solicitud de Única Oferta",null,"CONTRATAR LA PRESTACIÓN DE SERVICIOS PROFESIONALES PARA BRINDAR ASESORÍA A LA GERENCIA EN LA GESTIÓN ADMINISTRATIVA DEL SISTEMA INTEGRADO DE TRANSPORTE SIVA SAS ENTE GESTOR DEL SISTEMA ESTRATÉ","JAIRO RAFAEL MARTÍNEZ MOLINA",{"v":77090881,"d":"77,090,881"},{"v":39960000,"d":"$ 39,960,000.00"},"4 MESES Y 15 DIAS ",143,"2025-08-04",156,"2025-08-12","2025-08-15","N/A","N/A","N/A","N/A","2025-12-31","Terminación Anticipada del Contrato",{"$nulls":15},{"v":39960000,"d":"$ 39,960,000.00"},"4 MESES Y 15 DIAS ","2025-12-31"]
["PSAG","56",2025,"Solicitud de Única Oferta",null,"CONTRATACION DE LA PRESTACION DE SERVICIOS DE APOYO A LA GESTIÓN AL AREA DE OPERACIONES DEL SISTEMA ESTRATEGICO DE TRANSPORTE PUBLICO COLECTIVO DE LA CIUDAD DE VALLEDUPAR - SETPC. ","ALEJANDRO JOSE OLIVELLA VILLAZON",{"v":1065578743,"d":"1,065,578,743"},{"v":12430228,"d":"$ 12,430,228.00"},"4 MESES Y 6 DIAS ",156,"2025-08-21",161,"2025-08-25","2025-08-26","N/A","N/A","N/A","N/A","2025-12-31","Finalizado",{"$nulls":15},{"v":12430228,"d":"$ 12,430,228.00"},"4 MESES Y 6 DIAS ","2025-12-31"]
["PSP","57",2025,"Solicitud de Única Oferta",null,"PRESTACION DE SERVICIOS PROFESIONALES PARA BRINDAR ASESORIA FINANCIERA A LA GERENCIA EN EL SISTEMA INTEGRADO DE TRANSPORTE DE VALLEDUPAR SIVA S.A.S. ENTE GESTOR DEL SISTEMA ESTRATEGICO DE TRANSPORTE PUBLICO SETP DE VALLEDUPAR","Angela María Herrera Piñeres",{"v":22793797,"d":"22,793,797"},{"v":49726362,"d":"$ 49,726,362.00"},"4 MESES Y 6 DIAS ",157,"2025-08-22",162,"2025-08-25","2025-08-25","N/A","N/A","N/A","N/A","2025-12-30","Finalizado",{"$nulls":15},{"v":49726362,"d":"$ 49,726,362.00"},"4 MESES Y 6 DIAS ","2025-12-30"]
["PSP","58",2025,"Solicitud de Única Oferta",null,"PRESTACION DE SERVICIOS PROFESIONALES PARA QUE BRINDE APOYO Y ASESORIA JURIDICA EN EL SISTEMA INTEGRADO DE TRANSPORTE DE VALLEDUPAR SIVA S.A.S. ENTE GESTOR DEL SISTEMA ESTRATEGICO DETRANSPORTE PUBLICO SETP DE VALLEDUPAR","ELIZABETH GUTIERREZ GUERRA ",{"v":1065585539,"d":"1,065,585,539"},{"v":20423409,"d":"$ 20,423,409.00"},"3 MESES ",159,"2025-08-26",163,"2025-08-27","2025-08-27","N/A","N/A","N/A","N/A","2025-12-15","Finalizado",{"$nulls":7},"SI","2025-11-25",{"v":4311609,"d":"$ 4,311,609"},"19 DIAS ",211,"2025-11-24",217,"2025-11-25",{"v":24735018,"d":"$ 24,735,018.00"},"3 MESES Y 19 DIAS ","2025-12-15"]
["PSP","59",2025,"Solicitud de Única Oferta",null,"PRESTAClÓN DE SERVICIOS PROFESIONALES COMO APOYO SOCIAL PARA LOS PROYECTOS DE INFRAESTRUCTURA Y LA OPERAClON DEL SISTEMA ESTRATEGICO DE TRANSPORTE PUBLICO COLECTIVO DE LA CIUDAD DE VALLEDUPAR SETPC","MARIA PATRICIA RIOS VELEZ",{"v":56062232,"d":"56,062,232"},{"v":20719640,"d":"$ 20,719,640.00"},"4 MESES ",161,"2025-08-28",164,"2025-08-29","2025-09-01","N/A","N/A","N/A","N/A","2025-12-30","Finalizado",{"$nulls":15},{"$f":"I61","v":{"v":20719640,"d":"$ 20,719,640.00"}},{"$f":"J61","v":"4 MESES "},{"$f":"T61","v":"2025-12-30"}]
["CS","60",2025,"Solicitud de Única Oferta",null,"CONTRATACION PARA LA ADQUISICION DE ELEMENTOS DE PAPELERIA EN GENERAL Y UTILES DE OFICINA QUE REQUIERA EL SISTEMA INTEGRADO DE TRANSPORTE DE VALLEDUPAR SIVA S.A.S","DONALDO ENRIQUE VILORIA JIMENEZ",{"v":12722247,"d":"12,722,247"},{"v":10000000,"d":"$ 10,000,000.00"},"3 MESES Y 15 DIAS ",141,"2025-08-04",169,"2025-09-05","2025-09-09","N/A","N/A","N/A","N/A","2025-12-23","Finalizado",{"$nulls":15},{"v":10000000,"d":"$ 10,000,000.00"},"3 MESES Y 15 DIAS ","2025-12-23"]
["PSAG","61",2025,"Solicitud de Única Oferta",null,"CONTRATACION DE PRESTACION DE SERVICIOS DE APOYO A LA GESTIÓN EN LA SUPERVISION DEL MANTENIMIENTO DE LA FLOTA DE BUSES DE PROPIEDAD DEL SISTEMA INTEGRADO DE TRANSPORTE DE VALLEDUPAR SIVA S.A.S. PARA LA OPERACION DEL SISTEMA ESTRATEGICO DE TRANSPORTE PUBLICO COLECTIVO DE PASAJEROS SETPC","LEONARDO RAMIREZ CABALLERO",{"v":1067598236,"d":"1,067,598,236"},{"v":9059580,"d":"$ 9,059,580.00"},"3 MESES Y 18 DIAS ",167,"2025-09-10",171,"2025-09-12","2025-09-12","N/A","N/A","N/A","N/A","2025-12-29","Finalizado",{"$nulls":15},{"v":9059580,"d":"$ 9,059,580.00"},"3 MESES Y 18 DIAS ","2025-12-29"]
["CS","62",2025,"Solicitud de Única Oferta",null,"PRESTACION DE SERVICIOS PARA LA ADQUSICION DE ELEMENTOS DE ASEO Y UTENSILIOS DE CAFETERIA QUE REQUIERA LA SEDE DEL SISTEMA INTEGRADO DE TRANSPORTE DE VALLEDUPAR SIVA S.A.S","REYES LOPEZ SAS",{"v":824003724,"d":"824,003,724"},{"v":12096000,"d":"$ 12,096,000.00"},"2 MESES ",138,"2025-07-23",179,"2025-09-25","2025-09-25","N/A","N/A","N/A","N/A","2025-11-24","Finalizado",{"$nulls":7},"SI","2025-11-21",{"v":0,"d":"$ 0"},"25 DIAS ","N/A","N/A","N/A","N/A",{"v":12096000,"d":"$ 12,096,000.00"},"2 MESES Y 25 DIAS ","2025-12-19"]
["PSP","63",2025,"Solicitud de Única Oferta",null,"CONTRATACION DE LA PRESTACION DE SERVICIOS PROFESIONALES DE APOYO AL AREA DE GESTIÓN FINANCIERA QUE ADELANTE EL SISTEMA INTEGRADO DE TRANSPORTE DE VALLEDUPAR - SIVA","KEVIN ANDRES FERNANDEZ SALAZAR",{"v":1065659009,"d":"1,065,659,009"},{"v":12082819,"d":"$ 12,082,819.00"},"3 MESES Y 8 DIAS ",171,"2025-09-19",177,"2025-09-23","2025-09-23","N/A","N/A","N/A","N/A","2025-12-30","Finalizado",{"$nulls":15},{"$f":"I65","v":{"v":12082819,"d":"$ 12,082,819.00"}},{"$f":"J65","v":"3 MESES Y 8 DIAS "},{"$f":"T65","v":"2025-12-30"}]
["PSP","64",2025,"Solicitud de Única Oferta",null,"CONTRATAClÓN DE PRESTAClÓN DE SERVICIOS PROFESIONALES DE APOYO A LOS  PROYECTOS DE INFRAESTRUCTURA Y DE OPERACIONES COMO INGENIERO AMBIENTAL EN EL SISTEMA  INTEGRADO DE TRANSPORTE DE VALLEDUPAR SIVA S.A.S. ENTE GESTOR DEL SISTEMA ESTRATÉGICO DE  TRANSPORTE PÚBLICO SETP DE VALLEDUPAR","RAUL ENRIQUE MAYA QUIROZ\n",{"v":1065581871,"d":"1,065,581,871"},{"v":12320000,"d":"$ 12,320,000.00"},"2 MESES Y 28 DIAS ",174,"2025-09-26",180,"2025-10-01","2025-10-03","N/A","N/A","N/A","N/A","2025-12-30","Finalizado",{"$nulls":15},{"v":12320000,"d":"$ 12,320,000.00"},"2 MESES Y 28 DIAS ","2025-12-30"]
["PSAG","65",2025,"Solicitud de Única Oferta",null,"CONTRATAClÓN PARA LA PRESTACION DE SERVICIOS DE APOYO A LA GESTIÓN PARA QUE BRINDE SOPORTE A LAS ACTIVIDADES ADMINISTRATIVAS Y RELACIONADAS CON LA COMERCIALIZACION  DE PUBLICIDAD PARA EL SISTEMA INTEGRADO DE TRANSPORTE DE VALLEDUPAR SIVA S.A.S. ENTE  GESTOR DEL SISTEMA ESTRATÉGICO DE TRANSPORTE PÚBLICO SETP DE VALLEDUPAR\n"," MARTHA MAGADALENA CUELLAR MANDON",{"v":49743427,"d":"49,743,427"},{"v":8681429,"d":"$ 8,681,429.00"},"2 MESES Y 28 DIAS ",175,"2025-09-29",181,"2025-10-01","2025-10-03","N/A","N/A","N/A","N/A","2025-12-30","Finalizado",{"$nulls":15},{"v":8681429,"d":"$ 8,681,429.00"},"2 MESES Y 28 DIAS ","2025-12-30"]
["PSP","66",2025,"Solicitud de Única Oferta",null,"PRESTACIÓN DE SERVICIOS DE APOYO A LA GESTIÓN PARA  REALIZAR EL CUBRIMIENTO AUDITIVO, VISUAL Y AUDIOVISUAL,  COMO SU PRODUCCIÓN Y POST-PRODUCCIÓN, DE LOS EVENTOS,  ACTIVIDADES Y ACCIONES OFICIALES QUE REALICE EL SISTEMA  INTEGRADO DE TRANSPORTE DE VALLEDUPAR SIVA S.A.S","INNOVACION ATL S.A.S","900.567.925 – 6",{"v":21380333,"d":"$ 21,380,333.00"},"2 MESES 17 DIAS ",181,"2025-10-06",188,"2025-10-14","2025-10-14","N/A","N/A","N/A","N/A","2025-12-30","Finalizado",{"$nulls":15},{"v":21380333,"d":"$ 21,380,333.00"},"2 MESES 17 DIAS ","2025-12-30"]
["PSP","67",2025,"Solicitud de Única Oferta",null,"PRESTACION DE SERVICIOS PROFESIONALES DE REVISORIA FISCAL PARA EL PERIODO 2025- 2026 DE LA EMPRESA SISTEMA INTEGRADO DE TRANSPORTE DE VALLEDUPAR - SIVA S.A.S. ENTE GESTOR  DEL PROYECTO SISTEMA ESTRATEGICO DE TRANSPORTE PÚBLICO COLECTIVO DE VALLEDUPAR - SETPC\n","HERNAN ELIECER FREYLE NIEVES ",{"v":12557208,"d":"12,557,208"},{"v":8909598,"d":"$ 8,909,598.00"},"2 MESES Y 15 DIAS ",148,"2025-08-05",190,"2025-10-14","2025-10-16","N/A","N/A","N/A","N/A","2025-12-30","Finalizado",{"$nulls":15},{"v":8909598,"d":"$ 8,909,598.00"},"2 MESES Y 15 DIAS ","2025-12-30"]
["PSP","68",2025,"Solicitud de Única Oferta",null," CONTRATACIÓN PARA LA PRESTACIÓN DE SERVICIOS PROFESIONALES DE UN  INGENIERO ELECTRÓNICO, PARA REALIZAR LAS ACTIVIDADES TÉCNICAS DE ACOMPAÑAMIENTO Y  SOPORTE EN LOS PROCESOS RELACIONADOS CON SISTEMAS ELECTRÓNICOS, ELÉCTRICOS Y DE  TELECOMUNICACIONES, QUE REQUIERA EL SISTEMA INTEGRADO DE TRANSPORTE SIVA SAS EN EL  DESARROLLO DE SUS OPERACIONES INSTITUCIONALES\n","ALVARO JOSE ROSADO QUINTERO",{"v":77034185,"d":"77,034,185"},{"v":10935000,"d":"$ 10,935,000.00"},"2 MESES Y 15 DIAS ",183,"2025-10-10",191,"2025-10-16","2025-10-16","N/A","N/A","N/A","N/A","2025-12-30","Finalizado",{"$nulls":15},{"v":10935000,"d":"$ 10,935,000.00"},"2 MESES Y 15 DIAS ","2025-12-30"]
["PSP","69",2025,"Solicitud de Única Oferta",null,"PRESTACIÓN DE SERVICIOS PROFESIONALES PARA APOYAR  FINANCIERAMENTE EL DESARROLLO DE LA GESTION  CONTRACTUAL QUE ADELANTA EL SISTEMA INTEGRADO DE  TRANSPORTE DE VALLEDUPAR SIVA S.A.S. ENTE GESTOR DEL  SISTEMA ESTRATÉGICO DE TRANSPORTE PÚBLICO SETP DE VALLEDUPAR\n","IVIAN PAOLA DIAZ AMELL",{"v":1065599529,"d":"1,065,599,529"},{"v":12259120,"d":"$ 12,259,120.00"},"2 MESES Y 11 DIAS ",186,"2025-10-14",192,"2025-10-17","2025-10-20","N/A","N/A","N/A","N/A","2025-12-30","Finalizado",{"$nulls":15},{"v":12259120,"d":"$ 12,259,120.00"},"2 MESES Y 11 DIAS ","2025-12-30"]
["PSP ","70",2025,"Solicitud de Única Oferta",null," PRESTACION DE SERVICIOS PROFESIONALES PARA BRINDAR ASESORIA A LA GERENCIA  EN LA GESTION ADMINISTRATIVA DEL SISTEMA INTEGRADO DE TRANSPORTE DE VALLEDUPAR SIVA S.A.S.  ENTE GESTOR DEL SISTEMA ESTRATEGICO DE TRANSPORTE PUBLICO SETPC DE VALLEDUPAR"," RICARDO ERASMO CORRALES RIVERA",{"v":7570411,"d":"7,570,411"},{"v":16872000,"d":"$ 16,872,000.00"},"1 MES Y 27 DIAS ",192,"2025-10-22",204,"2025-11-04","2025-11-04","N/A","N/A","N/A","N/A","2025-12-30","Finalizado",{"$nulls":15},{"v":16872000,"d":"$ 16,872,000.00"},"1 MES Y 27 DIAS ","2025-12-30"]
["CS","71",2025,"Solicitud de Única Oferta",null,"ADQUISICIÓN DE UNA (1) PÓLIZA DE RESPONSABILIDAD CIVIL  EXTRACONTRACTUAL PARA AMPARAR BAJO LAS CONDICIONES DE LA PÓLIZA DE SERVIDORES PÚBLICOS  LOS PERJUICIOS CAUSADOS A TERCEROS Y/O A LA ENTIDAD A CONSECUENCIA DE ACCIONES O ACTOS  IMPUTABLES A UNO O VARIOS FUNCIONARIOS Y MIEMBROS DE LA JUNTA DIRECTIVA QUE DESEMPEÑEN  FUNCIONES EN LA EMPRESA SISTEMA INTEGRADO DE TRANSPORTE DE VALLEDUPAR SIVA S.A.S, UNA (1)  PÓLIZA QUE AMPARE UN BIEN INMUEBLE CONTRA TODO RIESGO QUE INCLUYA PROTEJA LOS BIENES Y  PATRIMONIO QUE ESTE BAJO LA RESPONSABILIDAD Y CUSTODIA DEL SISTEMA INTEGRADO DE  TRANSPORTE DE VALLEDUPAR - SIVA SAS Y UNA PÓLIZA (1) GLOBAL MANEJO OFICIAL, A TRAVES DE LA  CONTRATACIÓN DE UNA O VARIAS COMPAÑÍAS DE SEGUROS LEGALMENTE AUTORIZADAS PARA FUNCION","CHUBB SEGUROS COLOMBIA SA","860026518-6",{"v":98109313,"d":"$ 98,109,313.00"},"10 DIAS ",185,"2025-10-14",209,"2025-11-06","2025-11-06","N/A","N/A","N/A","N/A","2025-11-15","Finalizado",{"$nulls":15},{"v":98109313,"d":"$ 98,109,313.00"},"10 DIAS ","2025-11-15"]
["CO ","72",2025,"Solicitud de Única Oferta",null,"CONTRATAR LAS REPARACIONES LOCATIVAS PARA EL MANTENIMIENTO Y CONSERVACION DE LOS BIENES MUEBLES O INMUEBLE, INCLUYE EL SUMINISTRO DE MATERIALES Y MANO DE OBRA, QUE SE REQUIERAN PARA LA SEDE DEL SISTEMA INTEGRADO DE TRANSPORTE PUBLICO DE VALLEDUPAR SIVA S.A.S. ENTE GESTOR DEL PROYECTO SISTEMA ESTRATEGICO DE TRANSPORTE PUBLICO COLECTIVO DE VALLEDUPAR SETPC.","BREIDER DE JESUS CASTRO LOPEZ ",{"v":85485323,"d":"85,485,323"},{"v":42657636,"d":"$ 42,657,636.00"},"30 DIAS ",207,"2025-11-14",218,"2025-12-01","2025-12-02","N/A","N/A","N/A","N/A","2025-12-31","Finalizado",{"$nulls":15},{"v":42657636,"d":"$ 42,657,636.00"},"30 DIAS ","2025-12-31"]
["PS","73",2025,"Solicitud de Única Oferta",null,"PRESTACIÓN DE SERVICIO PARA LA EJECUCIÓN DE ACTIVIDADES DE CAPACITACIÓN, SENSIBILIZACIÓN, DIVULGACIÓN Y PROMOCIÓN DEL SISTEMA ESTRATÉGICO DE TRANSPORTE PÚBLICO COLECTIVO DE PASAJEROS DE LA CIUDAD DE VALLEDUPAR, EN EL MARCO DE LAS FESTIVIDADES DECEMBRINAS.","TRANSVUPAR SAS ",{"v":901260241,"d":"901,260,241"},{"v":35331876,"d":"$ 35,331,876.00"},"27 DIAS ",220,"2025-12-03",226,"2025-12-05","2025-12-05","N/A","N/A","N/A","N/A","2025-12-31","Finalizado",{"$nulls":15},{"v":35331876,"d":"$ 35,331,876.00"},"27 DIAS ","2025-12-31"]
["PS","074",2025,"Solicitud de Única Oferta",null," ONTRATAR EL SERVICIO DE MANTENIMIENTO PREVENTIVO Y CORRECTIVO Y LA  RECARGA DE EXTINTORES DE LA ENTIDAD, GARANTIZANDO SU ADECUADO  FUNCIONAMIENTO Y CUMPLIMIENTO DE LA NORMATIVIDAD VIGENTE DEL SIVA  S.A.S.","HERNANDO JOSE GUERRA HINOJOSA",{"v":77193736,"d":"77,193,736"},{"v":1728000,"d":"$ 1,728,000.00"},"5 DIAS ",212,"2025-11-28",235,"2025-12-23","2025-12-29","N/A","N/A","N/A","N/A","2025-12-30","Terminación Anticipada del Contrato",{"$nulls":15},{"v":1728000,"d":"$ 1,728,000.00"},"5 DIAS ","2025-12-30"]
["PS","075",2025,"Solicitud de Única Oferta",null,"CONTRATAR EL MANTENIMIENTO DE HERRAMIENTAS TECNOLÓGICAS, ADQUISICIÓN DE LICENCIAS MICROSOFT, Y DEMÁS LICENCIAS REQUERIDAS  PARA EL FORTALECIMIENTO INSTITUCIONAL DEL SISTEMA INTEGRADO DE TRANSPORTE PÚBLICO DE VALLEDUPAR  SIVA SAS.","JAVIER ALFONSO YANCE SUÁREZ",{"v":1065627423,"d":"1,065,627,423"},{"v":13713560,"d":"$ 13,713,560.00"},"3 DIAS ",230,"2025-12-26",239,"2025-12-29","2025-12-29","N/A","N/A","N/A","N/A","2025-12-31","Finalizado",{"$nulls":15},{"v":13713560,"d":"$ 13,713,560.00"},"3 DIAS ","2025-12-31"]

{"sheet":"Lista","index":1,"n_rows":10,"n_cols":14,"rows_kept":10}
[null,"Tipo Contrato",null,"Modalidad",null,"Rubro",null,"Estado del Contrato",null,"Póliza",null,"Adición",null,"Acta de Suspensión"]
[null,"CC",null,"Concurso de Méritos",null,"Proyecto",null,"En Ejecución",null,"Si",null,"Si",null,"Si"]
[null,"CI",null,"LEY 80",null,"Capitalización",null,"Terminación Anticipada del Contrato",null,"N/A",null,"N/A",null,"N/A"]
[null,"CO",null,"Licitación Pública",null,"Operaciones",null,"Finalizado"]
[null,"CS",null,"Solicitud de Única Oferta",{"$nulls":3},"Suspendido"]
[null,"CSU",null,"Solicitud Privada de Oferta"]
[null,"PS"]
[null,"PS - SPRO"]
[null,"PSAG"]
[null,"PSP"]